fUSD/lending_fUSD_20250226
["ID","MTS","AMOUNT","RATE_DAILY","PERIOD"]
[354542580,1740563445323,-590.61,0.00041095,14]
[354542581,1740563445332,-500.0,0.00041095,14]
[354542582,1740563445342,-500.0,0.00041095,14]
[354542583,1740563445357,-500.0,0.00041095,14]
[354542584,1740563445367,-1037.91,0.00041095,14]
[354542585,1740563445377,-1718.61,0.00041095,14]
[354542586,1740563445387,-1234.55,0.00041095,14]
[354542587,1740563445397,-1360.94,0.00041095,14]
[354542588,1740563445407,-453.47001364,0.00041095,14]
[354542589,1740563445420,-2114.04998636,0.00041095,14]
[354542590,1740563445430,-500.0,0.00041095,14]
[354542591,1740563445440,-1949.54,0.00041095,14]
[354542592,1740563445450,-500.0,0.00041095,14]
[354542593,1740563445459,-500.0,0.00041095,14]
[354542594,1740563445469,-921.65,0.00041095,14]
[354542595,1740563445479,-2893.55,0.00041095,14]
[354542596,1740563445489,-1429.55,0.00041095,14]
[354542597,1740563445499,-677.51,0.00041095,14]
[354542598,1740563445508,-500.0,0.00041095,14]
[354542599,1740563445518,-682.59,0.00041095,14]
[354542600,1740563445527,-2874.34,0.00041095,14]
[354542601,1740563445537,-500.0,0.00041095,14]
[354542602,1740563445547,-2397.57,0.00041095,14]
[354542603,1740563445557,-1223.73,0.00041095,14]
[354542604,1740563445567,-1928.94,0.00041095,14]
[354542605,1740563445577,-500.0,0.00041095,14]
[354542606,1740563445586,-500.0,0.00041095,14]
[354542607,1740563445596,-957.24,0.00041095,14]
[354542608,1740563445606,-1605.71,0.00041095,14]
[354542609,1740563445615,-500.0,0.00041095,14]
[354542610,1740563445625,-697.46,0.00041095,14]
[354542611,1740563445635,-656.54,0.00041095,14]
[354542612,1740563445645,-500.0,0.00041095,14]
[354542613,1740563445655,-1902.12,0.00041095,14]
[354542614,1740563445664,-933.52,0.00041095,14]
[354542615,1740563445676,-1226.09,0.00041095,14]
[354542616,1740563445686,-500.0,0.00041095,14]
[354542617,1740563445695,-1027.2,0.00041095,14]
[354542618,1740563445706,-500.0,0.00041095,14]
[354542619,1740563445715,-500.0,0.00041095,14]
[354542620,1740563445725,-500.0,0.00041095,14]
[354542621,1740563445735,-500.0,0.00041095,14]
[354542622,1740563445745,-1655.27,0.00041095,14]
[354542623,1740563445755,-1461.92,0.00041095,14]
[354542624,1740563445764,-2105.81,0.00041095,14]
[354542625,1740563445774,-500.0,0.00041095,14]
[354542626,1740563445784,-667.07,0.00041095,14]
[354542627,1740563445795,-500.0,0.00041095,14]
[354542628,1740563445804,-867.9,0.00041095,14]
[354542629,1740563445814,-500.0,0.00041095,14]
[354542630,1740563445824,-500.0,0.00041095,14]
[354542631,1740563445834,-500.0,0.00041095,14]
[354542632,1740563445846,-500.0,0.00041095,14]
[354542633,1740563445860,-500.0,0.00041095,14]
[354542634,1740563445870,-768.49,0.00041095,14]
[354542635,1740563445880,-598.42,0.00041095,14]
[354542636,1740563445891,-500.0,0.00041095,14]
[354542637,1740563445901,-1167.45,0.00041095,14]
[354542638,1740563445910,-1069.09,0.00041095,14]
[354542639,1740563445921,-500.0,0.00041095,14]
[354542640,1740563445932,-3054.99,0.00041095,14]
[354542641,1740563445943,-1203.39,0.00041095,14]
[354542642,1740563445952,-548.82,0.00041095,14]
[354542643,1740563445962,-500.0,0.00041095,14]
[354542644,1740563445972,-628.8,0.00041095,14]
[354542645,1740563445982,-500.0,0.00041095,14]
[354542646,1740563445991,-2716.47,0.00041095,14]
[354542647,1740563446001,-500.0,0.00041095,14]
[354542648,1740563446010,-500.0,0.00041095,14]
[354542649,1740563446020,-500.0,0.00041095,14]
[354542650,1740563446030,-500.0,0.00041095,14]
[354542651,1740563446039,-1508.32,0.00041095,14]
[354542652,1740563446049,-754.08,0.00041095,14]
[354542653,1740563446058,-1147.13,0.00041095,14]
[354542654,1740563446067,-500.0,0.00041095,14]
[354542655,1740563446077,-500.0,0.00041095,14]
[354542656,1740563446086,-1800.1,0.00041095,14]
[354542657,1740563446096,-500.0,0.00041095,14]
[354542658,1740563446106,-500.0,0.00041095,14]
[354542659,1740563446116,-1132.47,0.00041095,14]
[354542660,1740563446125,-500.0,0.00041095,14]
[354542661,1740563446135,-686.95,0.00041095,14]
[354542663,1740563446145,-653.54,0.00041095,14]
[354542665,1740563446155,-1193.54,0.00041095,14]
[354542666,1740563446165,-1159.63,0.00041095,14]
[354542667,1740563446175,-624.66,0.00041095,14]
[354542668,1740563446185,-500.0,0.00041095,14]
[354542669,1740563446195,-500.0,0.00041095,14]
[354542670,1740563446204,-5329.26,0.00041095,14]
[354542671,1740563446214,-500.0,0.00041095,14]
[354542672,1740563446224,-500.0,0.00041095,14]
[354542673,1740563446234,-1316.87,0.00041095,14]
[354542674,1740563446244,-500.0,0.00041095,14]
[354542675,1740563446253,-1948.2,0.00041095,14]
[354542676,1740563446263,-500.0,0.00041095,14]
[354542677,1740563446272,-500.0,0.00041095,14]
[354542678,1740563446282,-2780.41,0.00041095,14]
[354542679,1740563446291,-500.0,0.00041095,14]
[354542680,1740563446301,-500.0,0.00041095,14]
[354542681,1740563446311,-500.0,0.00041095,14]
[354542682,1740563446320,-500.0,0.00041095,14]
[354542683,1740563446329,-500.0,0.00041095,14]
[354542684,1740563446339,-573.74,0.00041095,14]
[354542685,1740563446348,-500.0,0.00041095,14]
[354542686,1740563446358,-1177.92,0.00041095,14]
[354542687,1740563446367,-1406.78,0.00041095,14]
[354542688,1740563446377,-1758.2,0.00041095,14]
[354542689,1740563446387,-968.0,0.00041095,14]
[354542690,1740563446397,-3448.02,0.00041095,14]
[354542691,1740563446407,-500.0,0.00041095,14]
[354542692,1740563446416,-500.0,0.00041095,14]
[354542693,1740563446427,-1786.83,0.00041095,14]
[354542694,1740563446436,-1231.95,0.00041095,14]
[354542695,1740563446445,-500.0,0.00041095,14]
[354542696,1740563446455,-657.97,0.00041095,14]
[354542697,1740563446465,-500.0,0.00041095,14]
[354542698,1740563446474,-2078.97,0.00041095,14]
[354542699,1740563446483,-1481.83,0.00041095,14]
[354542700,1740563446493,-500.0,0.00041095,14]
[354542701,1740563446503,-1884.91,0.00041095,14]
[354542702,1740563446513,-500.0,0.00041095,14]
[354542703,1740563446523,-1304.31,0.00041095,14]
[354542704,1740563446532,-2344.47,0.00041095,14]
[354542705,1740563446542,-500.0,0.00041095,14]
[354542706,1740563446551,-500.0,0.00041095,14]
[354542707,1740563446560,-576.25,0.00041095,14]
[354542708,1740563446570,-890.89,0.00041095,14]
[354542710,1740563446579,-500.0,0.00041095,14]
[354542712,1740563446589,-934.62,0.00041095,14]
[354542714,1740563446598,-1337.87,0.00041095,14]
[354542716,1740563446608,-500.0,0.00041095,14]
[354542718,1740563446617,-764.74,0.00041095,14]
[354542720,1740563446627,-500.0,0.00041095,14]
[354542722,1740563446636,-500.0,0.00041095,14]
[354542723,1740563446646,-1182.1,0.00041095,14]
[354542724,1740563446655,-500.0,0.00041095,14]
[354542725,1740563446664,-1613.2,0.00041095,14]
[354542726,1740563446675,-1977.68,0.00041095,14]
[354542727,1740563446685,-505.17,0.00041095,14]
[354542728,1740563446695,-500.0,0.00041095,14]
[354542729,1740563446704,-500.96980222,0.00041095,14]
[354542730,1740563446713,-1057.36,0.00041095,14]
[354542731,1740563446723,-2025.96,0.00041095,14]
[354542732,1740563446733,-500.0,0.00041095,14]
[354542733,1740563446742,-1787.77,0.00041095,14]
[354542734,1740563446751,-942.94,0.00041095,14]
[354542735,1740563446761,-500.0,0.00041095,14]
[354542736,1740563446770,-534.26487117,0.00041095,14]
[354542737,1740563446780,-500.0,0.00041095,14]
[354542738,1740563446789,-569.35,0.00041095,14]
[354542739,1740563446799,-500.0,0.00041095,14]
[354542740,1740563446808,-500.0,0.00041095,14]
[354542741,1740563446818,-1108.06,0.00041095,14]
[354542742,1740563446827,-1350.93,0.00041095,14]
[354542743,1740563446837,-500.0,0.00041095,14]
[354542744,1740563446931,-500.0,0.00041095,14]
[354542745,1740563446941,-1726.08,0.00041095,14]
[354542746,1740563446951,-916.89,0.00041095,14]
[354542747,1740563446960,-500.0,0.00041095,14]
[354542748,1740563446969,-500.0,0.00041095,14]
[354542749,1740563446979,-500.0,0.00041095,14]
[354542750,1740563446989,-500.0,0.00041095,14]
[354542751,1740563446998,-500.0,0.00041095,14]
[354542752,1740563447007,-500.0,0.00041095,14]
[354542753,1740563447016,-1195.63,0.00041095,14]
[354542754,1740563447025,-500.0,0.00041095,14]
[354542755,1740563447035,-500.0,0.00041095,14]
[354542756,1740563447046,-500.0,0.00041095,14]
[354542757,1740563447058,-523.15,0.00041095,14]
[354542758,1740563447067,-1397.52,0.00041095,14]
[354542759,1740563447076,-3709.25,0.00041095,14]
[354542760,1740563447085,-1052.99,0.00041095,14]
[354542761,1740563447094,-500.0,0.00041095,14]
[354542762,1740563447103,-500.0,0.00041095,14]
[354542763,1740563447113,-500.0,0.00041095,14]
[354542764,1740563447122,-987.69,0.00041095,14]
[354542765,1740563447131,-500.0,0.00041095,14]
[354542766,1740563447141,-608.39,0.00041095,14]
[354542767,1740563447151,-873.53,0.00041095,14]
[354542768,1740563447160,-2386.76,0.00041095,14]
[354542769,1740563447170,-1261.25,0.00041095,14]
[354542770,1740563447179,-500.0,0.00041095,14]
[354542771,1740563447189,-500.0,0.00041095,14]
[354542772,1740563447198,-1463.54,0.00041095,14]
[354542773,1740563447207,-1594.07,0.00041095,14]
[354542774,1740563447217,-500.0,0.00041095,14]
[354542775,1740563447226,-324.24808321,0.00041095,14]
[354542776,1740563447237,-500.0,0.00041095,14]
[354542777,1740563447246,-1256.85,0.00041095,14]
[354542778,1740563447255,-1000.0,0.00041095,14]
[354542779,1740563447264,-500.0,0.00041095,14]
[354542780,1740563447273,-500.0,0.00041095,14]
[354542781,1740563447282,-500.0,0.00041095,14]
[354542782,1740563447291,-1135.3,0.00041095,60]
[354542783,1740563447299,-500.0,0.00041095,14]
[354542784,1740563447308,-500.0,0.00041095,14]
[354542785,1740563447318,-500.0,0.00041095,14]
[354542786,1740563447328,-687.38,0.00041095,14]
[354542787,1740563447337,-500.0,0.00041095,14]
[354542788,1740563447347,-500.0,0.00041095,14]
[354542789,1740563447358,-793.55,0.00041095,14]
[354542790,1740563447367,-239.18296293,0.00041095,14]
[354542791,1740563447376,-500.0,0.00041095,14]
[354542792,1740563447386,-500.0,0.00041095,14]
[354542793,1740563447398,-500.0,0.00041095,14]
[354542794,1740563447407,-1748.64,0.00041095,14]
[354542795,1740563447417,-500.0,0.00041095,14]
[354542796,1740563447426,-2065.7,0.00041095,14]
[354542797,1740563447435,-500.0,0.00041095,14]
[354542798,1740563447444,-500.0,0.00041095,14]
[354542799,1740563447454,-500.0,0.00041095,14]
[354542800,1740563447463,-500.0,0.00041095,14]
[354542801,1740563447472,-2253.26,0.00041095,14]
[354542802,1740563447481,-500.0,0.00041095,14]
[354542803,1740563447491,-500.0,0.00041095,14]
[354542804,1740563447501,-500.0,0.00041095,14]
[354542805,1740563447510,-500.0,0.00041095,14]
[354542806,1740563447519,-192.73688666,0.00041095,14]
[354542807,1740563447528,-1487.36,0.00041095,14]
[354542808,1740563447537,-500.0,0.00041095,14]
[354542809,1740563447546,-500.0,0.00041095,14]
[354542810,1740563447555,-500.0,0.00041095,14]
[354542811,1740563447564,-679.46,0.00041095,14]
[354542812,1740563447573,-500.0,0.00041095,14]
[354542813,1740563447582,-1322.54,0.00041095,14]
[354542814,1740563447592,-500.0,0.00041095,14]
[354542815,1740563447601,-500.0,0.00041095,14]
[354542816,1740563447610,-192.54878007,0.00041095,14]
[354542817,1740563447619,-500.0,0.00041095,14]
[354542818,1740563447629,-500.0,0.00041095,14]
[354542819,1740563447638,-574.74516517,0.00041095,14]
[354542820,1740563447647,-500.0,0.00041095,14]
[354542821,1740563447656,-6805.86,0.00041095,14]
[354542822,1740563447665,-500.0,0.00041095,14]
[354542823,1740563447676,-500.0,0.00041095,14]
[354542824,1740563447685,-500.0,0.00041095,14]
[354542825,1740563447694,-1447.09,0.00041095,14]
[354542826,1740563447704,-3943.25,0.00041095,14]
[354542827,1740563447713,-1227.75,0.00041095,14]
[354542828,1740563447723,-500.0,0.00041095,14]
[354542829,1740563447732,-500.0,0.00041095,14]
[354542830,1740563447741,-688.29,0.00041095,14]
[354542831,1740563447751,-1484.01,0.00041095,14]
[354542832,1740563447761,-1257.73,0.00041095,14]
[354542833,1740563447772,-1385.3,0.00041095,14]
[354542834,1740563447782,-1086.66,0.00041095,14]
[354542835,1740563447792,-624.79627904,0.00041095,14]
[354542836,1740563447804,-1429.22,0.00041095,14]
[354542837,1740563447814,-500.0,0.00041095,14]
[354542838,1740563447823,-2063.13,0.00041095,14]
[354542839,1740563447832,-500.0,0.00041095,14]
[354542840,1740563447841,-1035.04,0.00041095,7]
[354542841,1740563447854,-500.0,0.00041095,14]
[354542842,1740563447863,-500.0,0.00041095,14]
[354542843,1740563447872,-680.14,0.00041095,14]
[354542844,1740563447881,-1402.93,0.00041095,14]
[354542845,1740563447890,-500.0,0.00041095,14]
[354542846,1740563447899,-600.3,0.00041095,14]
[354542847,1740563447909,-500.0,0.00041095,14]
[354542848,1740563447919,-879.25,0.00041095,14]
[354542849,1740563447929,-500.0,0.00041095,14]
[354542850,1740563447939,-500.0,0.00041095,14]
[354542851,1740563447949,-500.0,0.00041095,14]
[354542852,1740563447958,-317.84024685,0.00041095,14]
[354542853,1740563447967,-3156.95,0.00041095,14]
[354542854,1740563447977,-500.0,0.00041095,14]
[354542855,1740563447986,-500.0,0.00041095,14]
[354542856,1740563447996,-616.79,0.00041095,14]
[354542857,1740563448005,-500.0,0.00041095,14]
[354542858,1740563448015,-2711.6,0.00041095,14]
[354542859,1740563448025,-500.0,0.00041095,14]
[354542860,1740563448034,-500.0,0.00041095,14]
[354542861,1740563448043,-1318.28,0.00041095,14]
[354542862,1740563448052,-500.0,0.00041095,14]
[354542863,1740563448061,-1318.28,0.00041095,14]
[354542864,1740563448071,-1981.8,0.00041095,14]
[354542865,1740563448079,-1318.28,0.00041095,14]
[354542866,1740563448088,-1318.28,0.00041095,14]
[354542867,1740563448098,-317.79082275,0.00041095,14]
[354542868,1740563448107,-2309.04,0.00041095,14]
[354542869,1740563448116,-500.0,0.00041095,14]
[354542870,1740563448125,-500.0,0.00041095,14]
[354542871,1740563448134,-500.0,0.00041095,14]
[354542872,1740563448144,-507.40318057,0.00041095,14]
[354542873,1740563448154,-2222.34,0.00041095,14]
[354542874,1740563448163,-316.88349939,0.00041095,14]
[354542875,1740563448173,-500.0,0.00041095,14]
[354542876,1740563448182,-500.0,0.00041095,14]
[354542877,1740563448192,-500.0,0.00041095,14]
[354542878,1740563448201,-640.33,0.00041095,14]
[354542879,1740563448211,-4379.92,0.00041095,14]
[354542880,1740563448221,-500.0,0.00041095,14]
[354542881,1740563448230,-500.0,0.00041095,14]
[354542882,1740563448238,-500.0,0.00041095,14]
[354542883,1740563448248,-1293.98,0.00041095,14]
[354542884,1740563448256,-11288.6,0.00041095,14]
[354542885,1740563448265,-1266.23,0.00041095,14]
[354542886,1740563448275,-2108.71,0.00041095,14]
[354542887,1740563448284,-500.0,0.00041095,14]
[354542888,1740563448294,-500.0,0.00041095,14]
[354542889,1740563448303,-500.0,0.00041095,14]
[354542890,1740563448312,-500.0,0.00041095,14]
[354542891,1740563448321,-500.0,0.00041095,14]
[354542892,1740563448331,-3379.36,0.00041095,2]
[354542893,1740563448340,-500.0,0.00041095,14]
[354542894,1740563448350,-500.0,0.00041095,14]
[354542895,1740563448359,-500.0,0.00041095,14]
[354542896,1740563448368,-500.0,0.00041095,14]
[354542897,1740563448377,-1960.35,0.00041095,14]
[354542898,1740563448386,-209.48061105,0.00041095,14]
[354542899,1740563448395,-500.0,0.00041095,14]
[354542900,1740563448405,-734.75,0.00041095,14]
[354542901,1740563448414,-500.0,0.00041095,14]
[354542902,1740563448423,-2804.21,0.00041095,14]
[354542903,1740563448432,-2883.04,0.00041095,14]
[354542904,1740563448441,-3766.4,0.00041095,14]
[354542905,1740563448450,-500.0,0.00041095,14]
[354542906,1740563448459,-500.0,0.00041095,14]
[354542907,1740563448468,-500.0,0.00041095,14]
[354542908,1740563448477,-500.0,0.00041095,14]
[354542909,1740563448487,-3613.36,0.00041095,14]
[354542910,1740563448496,-500.0,0.00041095,14]
[354542911,1740563448505,-500.0,0.00041095,14]
[354542912,1740563448515,-500.0,0.00041095,14]
[354542913,1740563448524,-500.0,0.00041095,14]
[354542914,1740563448533,-540.82,0.00041095,14]
[354542915,1740563448543,-500.0,0.00041095,14]
[354542916,1740563448552,-500.0,0.00041095,14]
[354542917,1740563448561,-1295.46,0.00041095,14]
[354542918,1740563448570,-4035.64,0.00041095,14]
[354542919,1740563448579,-500.0,0.00041095,14]
[354542920,1740563448588,-500.0,0.00041095,14]
[354542921,1740563448597,-500.0,0.00041095,14]
[354542922,1740563448607,-2985.28,0.00041095,14]
[354542923,1740563448616,-500.0,0.00041095,14]
[354542924,1740563448625,-500.0,0.00041095,14]
[354542925,1740563448634,-500.0,0.00041095,14]
[354542926,1740563448644,-790.93,0.00041095,14]
[354542927,1740563448653,-1098.8,0.00041095,14]
[354542928,1740563448662,-500.0,0.00041095,14]
[354542929,1740563448671,-500.0,0.00041095,14]
[354542930,1740563448681,-500.0,0.00041095,14]
[354542931,1740563448691,-3779.94,0.00041095,14]
[354542932,1740563448700,-948.96,0.00041095,14]
[354542933,1740563448709,-1155.89,0.00041095,14]
[354542934,1740563448718,-500.0,0.00041095,14]
[354542935,1740563448727,-5875.3,0.00041095,14]
[354542936,1740563448736,-1095.27,0.00041095,14]
[354542937,1740563448746,-500.0,0.00041095,14]
[354542938,1740563448755,-500.0,0.00041095,14]
[354542939,1740563448765,-500.0,0.00041095,14]
[354542940,1740563448774,-500.0,0.00041095,14]
[354542941,1740563448783,-4030.2,0.00041095,14]
[354542942,1740563448793,-1618.55,0.00041095,14]
[354542943,1740563448802,-618.51,0.00041095,14]
[354542944,1740563448811,-8655.85,0.00041095,14]
[354542945,1740563448820,-524.33,0.00041095,14]
[354542946,1740563448829,-500.0,0.00041095,14]
[354542947,1740563448839,-500.0,0.00041095,14]
[354542948,1740563448848,-2189.53,0.00041095,14]
[354542949,1740563448862,-648.24,0.00041095,14]
[354542950,1740563448871,-500.0,0.00041095,14]
[354542951,1740563448880,-500.36563823,0.00041095,14]
[354542952,1740563448890,-3217.06,0.00041095,14]
[354542953,1740563448899,-4341.13,0.00041095,14]
[354542954,1740563448908,-579.83,0.00041095,14]
[354542955,1740563448917,-500.0,0.00041095,14]
[354542956,1740563448927,-3633.86,0.00041095,14]
[354542957,1740563448938,-765.45,0.00041095,14]
[354542958,1740563448948,-500.0,0.00041095,14]
[354542959,1740563448958,-500.0,0.00041095,14]
[354542960,1740563448967,-906.14,0.00041095,14]
[354542961,1740563448976,-500.0,0.00041095,14]
[354542962,1740563448985,-1892.78,0.00041095,14]
[354542963,1740563448994,-500.0,0.00041095,14]
[354542964,1740563449003,-3063.88,0.00041095,14]
[354542965,1740563449012,-500.0,0.00041095,14]
[354542966,1740563449022,-787.81,0.00041095,14]
[354542967,1740563449031,-813.83,0.00041095,14]
[354542968,1740563449040,-500.0,0.00041095,14]
[354542969,1740563449049,-6042.29,0.00041095,14]
[354542970,1740563449058,-1025.71,0.00041095,14]
[354542971,1740563449067,-513.58940355,0.00041095,14]
[354542972,1740563449077,-1259.08,0.00041095,14]
[354542973,1740563449087,-3879.12,0.00041095,14]
[354542974,1740563449096,-3350.24,0.00041095,14]
[354542975,1740563449105,-500.0,0.00041095,14]
[354542976,1740563449114,-11240.54,0.00041095,14]
[354542977,1740563449123,-962.77,0.00041095,14]
[354542978,1740563449132,-500.0,0.00041095,14]
[354542979,1740563449142,-556.01,0.00041095,14]
[354542980,1740563449151,-556.01,0.00041095,14]
[354542981,1740563449160,-556.01,0.00041095,14]
[354542982,1740563449170,-500.0,0.00041095,14]
[354542983,1740563449179,-1555.85,0.00041095,14]
[354542984,1740563449188,-2289.72,0.00041095,14]
[354542985,1740563449197,-500.0,0.00041095,14]
[354542986,1740563449207,-556.01,0.00041095,14]
[354542987,1740563449217,-556.01,0.00041095,14]
[354542988,1740563449226,-3277.15,0.00041095,14]
[354542989,1740563449235,-1884.68,0.00041095,14]
[354542990,1740563449244,-500.0,0.00041095,14]
[354542991,1740563449254,-1682.038911,0.00041095,14]
[354542992,1740563449281,-17.161089,0.00041095,14]
[354542993,1740563449290,-500.0,0.00041095,14]
[354542994,1740563449299,-45.13364407,0.00041095,14]
[354542995,1740563452058,-1391.14635593,0.00041095,14]
[354542996,1740563452067,-3869.79,0.00041095,14]
[354542997,1740563452077,-2821.66,0.00041095,14]
[354542998,1740563452086,-519.25,0.00041095,14]
[354542999,1740563452096,-2758.35,0.00041095,14]
[354543000,1740563452106,-500.0,0.00041095,14]
[354543001,1740563452115,-500.12041007,0.00041095,14]
[354543002,1740563452125,-2534.65,0.00041095,14]
[354543003,1740563452134,-500.0,0.00041095,14]
[354543004,1740563452144,-1065.52,0.00041095,14]
[354543005,1740563452154,-500.0,0.00041095,14]
[354543006,1740563452164,-1876.27,0.00041095,14]
[354543007,1740563452174,-2889.09,0.00041095,14]
[354543008,1740563452183,-500.0,0.00041095,14]
[354543009,1740563452194,-2390.14,0.00041095,14]
[354543010,1740563452203,-2471.5,0.00041095,14]
[354543011,1740563452212,-500.0,0.00041095,14]
[354543012,1740563452222,-500.0,0.00041095,14]
[354543013,1740563452231,-1092.42,0.00041095,14]
[354543014,1740563452240,-974.05,0.00041095,14]
[354543015,1740563452250,-500.0,0.00041095,14]
[354543016,1740563452259,-500.0,0.00041095,14]
[354543017,1740563452268,-4306.03,0.00041095,14]
[354543018,1740563452277,-500.0,0.00041095,14]
[354543019,1740563452287,-672.67,0.00041095,14]
[354543020,1740563452296,-196.41838366,0.00041095,14]
[354543021,1740563452305,-1821.58,0.00041095,14]
[354543022,1740563452610,-500.0,0.00041095,14]
[354543023,1740563452631,-1046.18,0.00041095,14]
[354543024,1740563452640,-500.0,0.00041095,14]
[354543025,1740563452649,-500.0,0.00041095,14]
[354543026,1740563452659,-500.0,0.00041095,14]
[354543027,1740563452668,-3791.36,0.00041095,14]
[354543028,1740563452678,-2218.05,0.00041095,14]
[354543029,1740563452688,-550.17,0.00041095,14]
[354543030,1740563452697,-1986.53,0.00041095,14]
[354543031,1740563452707,-853.36,0.00041095,14]
[354543032,1740563452717,-4483.26,0.00041095,14]
[354543033,1740563452726,-500.0,0.00041095,14]
[354543034,1740563452736,-3895.84,0.00041095,14]
[354543035,1740563452745,-500.0,0.00041095,14]
[354543036,1740563452755,-4732.38,0.00041095,14]
[354543037,1740563452764,-3840.9,0.00041095,14]
[354543038,1740563452774,-500.0,0.00041095,14]
[354543039,1740563452783,-500.0,0.00041095,14]
[354543040,1740563452793,-500.0,0.00041095,14]
[354543041,1740563452802,-4901.48,0.00041095,14]
[354543042,1740563452811,-500.0,0.00041095,14]
[354543043,1740563452820,-500.0,0.00041095,14]
[354543044,1740563452829,-500.0,0.00041095,14]
[354543045,1740563452839,-6438.58,0.00041095,14]
[354543046,1740563452848,-500.0,0.00041095,14]
[354543047,1740563452862,-500.0,0.00041095,14]
[354543048,1740563452872,-500.0,0.00041095,14]
[354543049,1740563452881,-500.0,0.00041095,14]
[354543050,1740563452891,-1113.46,0.00041095,14]
[354543051,1740563452900,-2154.14,0.00041095,14]
[354543052,1740563452909,-748.0,0.00041095,14]
[354543053,1740563452919,-500.8637402,0.00041095,14]
[354543054,1740563452928,-500.0,0.00041095,14]
[354543055,1740563452939,-500.0,0.00041095,14]
[354543056,1740563452948,-1377.22,0.00041095,14]
[354543057,1740563452957,-601.16429308,0.00041095,14]
[354543058,1740563452967,-500.0,0.00041095,14]
[354543059,1740563452976,-5625.46,0.00041095,14]
[354543060,1740563452985,-319.90890464,0.00041095,14]
[354543061,1740563452994,-887.03,0.00041095,14]
[354543062,1740563453003,-500.0,0.00041095,14]
[354543063,1740563453012,-3023.45,0.00041095,14]
[354543064,1740563453022,-8778.71,0.00041095,14]
[354543065,1740563453032,-773.25,0.00041095,14]
[354543066,1740563453041,-501.34134335,0.00041095,14]
[354543067,1740563453050,-500.0,0.00041095,14]
[354543068,1740563453059,-3593.47,0.00041095,14]
[354543069,1740563453068,-3192.65,0.00041095,14]
[354543070,1740563453077,-3974.42,0.00041095,14]
[354543071,1740563453086,-501.26250376,0.00041095,14]
[354543072,1740563453095,-500.0,0.00041095,14]
[354543073,1740563453104,-500.0,0.00041095,14]
[354543074,1740563453113,-420.50485896,0.00041095,14]
[354543075,1740563453122,-1367.94,0.00041095,14]
[354543076,1740563453131,-500.0,0.00041095,14]
[354543077,1740563453141,-500.0,0.00041095,14]
[354543078,1740563453150,-1187.28,0.00041095,14]
[354543079,1740563453160,-500.0,0.00041095,14]
[354543080,1740563453169,-500.0,0.00041095,14]
[354543081,1740563453179,-773.45,0.00041095,14]
[354543082,1740563453188,-1146.81,0.00041095,14]
[354543083,1740563453199,-737.22,0.00041095,14]
[354543084,1740563453213,-3253.87,0.00041095,14]
[354543085,1740563453222,-1772.18,0.00041095,14]
[354543086,1740563453232,-500.0,0.00041095,14]
[354543087,1740563453241,-2601.78,0.00041095,14]
[354543088,1740563453250,-500.0,0.00041095,14]